[Event "SRB-ch Semifinal 2021"]
[Site "Paracin"]
[Date "2021.03.16"]
[Round "1.8"]
[White "Stankovic, Milos"]
[Black "Pajcin, Lav"]
[Result "1-0"]
[ECO "B43"]
[WhiteElo "2414"]
[BlackElo "2167"]
[Annotator "NA"]
[PlyCount "57"]
[EventDate "2021.03.16"]
[EventType "swiss"]
[EventCountry "SRB"]
[SourceTitle "playchess.com"]
[Source "ChessBase"]
[SourceQuality "1"]
[TimeControl "40/5400+30:1800+30"]

1. e4 {[%emt 0:00:00]} c5 {[%emt 0:00:00]} 2. Nf3 {[%emt 0:00:13]} e6 {[%emt 0:00:23]} 3. Nc3 {[%emt 0:04:20]} a6 {[%emt 0:00:38]} 4. d4 {[%emt 0:00:16]} cxd4 {[%emt 0:00:13]} 5. Nxd4 {[%emt 0:00:20]} Qc7 {[%emt 0:00:35]} 6. Be2 {[%emt 0:00:45]} Nf6 {[%emt 0:02:16]} 7. a3 {[%emt 0:03:29]} Nc6 {[%emt 0:02:36]} 8. Be3 {[%emt 0:00:08]} Be7 {[%emt 0:06:23]} 9. f4 {[%emt 0:03:02]} d6 {[%emt 0:01:12]} 10. O-O {[%emt 0:03:47]} O-O {[%emt 0:04:40]} 11. Nb3 {[%emt 0:04:41]} b5 {[%emt 0:03:20]} 12. Bf3 {[%emt 0:07:29]} Bb7 {[%emt 0:01:33]} 13. Qe2 {[%emt 0:03:37]} Rac8 {[%emt 0:06:41]} 14. Rad1 $11 {[%emt 0:09:53]} Nd7 {[%emt 0:11:30]} 15. Qf2 {[%emt 0:01:57]} Na5 {[%emt 0:11:19]} 16. Nxa5 {[%emt 0:13:40]} Qxa5 {[%emt 0:00:10]} 17. Qd2 {[%emt 0:00:47]} Qc7 {[%emt 0:02:57]} 18. e5 {[%emt 0:01:15]} d5 {[%emt 0:03:50]} 19. Bd4 {[%emt 0:02:47]} Nb6 {[%emt 0:12:15]} 20. Kh1 {[%emt 0:06:05]} Nc4 {[%emt 0:05:13]} 21. Qc1 {[%emt 0:00:42]} b4 {[%emt 0:05:47]} 22. axb4 {[%emt 0:03:04]} Bxb4 {[%emt 0:00:10]} 23. Ne2 {[%emt 0:00:30]} a5 {[%emt 0:01:20]} 24. Ng3 {[%emt 0:02:45]} a4 {[%emt 0:07:36]} 25. Nh5 {[%emt 0:02:44]} Na5 {[%emt 0:06:42]} 26. f5 {[%emt 0:02:19]} Qxc2 {[%emt 0:01:50]} 27. Qg5 {[%emt 0:00:38]} g6 {[%emt 0:00:27]} 28. Nf6+ {[%emt 0:00:52]} Kg7 {[%emt 0:00:37]} 29. Be3 {[%emt 0:00:23]} 1-0

[Event "SRB-ch Semifinal 2021"]
[Site "Paracin"]
[Date "2021.03.16"]
[Round "1.10"]
[White "Zegarac, Vuk"]
[Black "Kotrla, Sebastian"]
[Result "1-0"]
[ECO "D35"]
[WhiteElo "2386"]
[BlackElo "2108"]
[Annotator "NA"]
[PlyCount "67"]
[EventDate "2021.03.16"]
[EventType "swiss"]
[EventCountry "SRB"]
[SourceTitle "playchess.com"]
[Source "ChessBase"]
[SourceQuality "1"]
[TimeControl "40/5400+30:1800+30"]

1. d4 {[%emt 0:00:00]} d5 {[%emt 0:00:20]} 2. c4 {[%emt 0:00:33]} e6 {[%emt 0:00:26]} 3. Nc3 {[%emt 0:00:15]} Nf6 {[%emt 0:00:58]} 4. cxd5 {[%emt 0:00:46]} exd5 {[%emt 0:01:19]} 5. Bg5 {[%emt 0:00:30]} Be7 {[%emt 0:03:45]} 6. e3 {[%emt 0:01:29]} O-O {[%emt 0:02:28]} 7. Bd3 {[%emt 0:01:18]} Re8 {[%emt 0:05:35]} 8. Nge2 {[%emt 0:04:32]} h6 {[%emt 0:04:01]} 9. Bh4 {[%emt 0:00:44]} c6 {[%emt 0:02:03]} 10. Qc2 {[%emt 0:07:15]} a5 {[%emt 0:03:17]} 11. f3 {[%emt 0:03:16]} Na6 {[%emt 0:04:26]} 12. a3 {[%emt 0:00:34]} Nh5 {[%emt 0:15:30]} 13. Bf2 {[%emt 0:04:33]} b5 $14 {[%emt 0:12:11]} 14. O-O {[%emt 0:03:22]} Bh4 {[%emt 0:08:07]} 15. e4 {[%emt 0:05:27]} dxe4 {[%emt 0:08:29]} 16. fxe4 {[%emt 0:01:28]} Bg4 {[%emt 0:00:30]} 17. h3 {[%emt 0:00:30]} Bxe2 {[%emt 0:10:20]} 18. Nxe2 {[%emt 0:03:37]} Re6 {[%emt 0:00:30]} 19. e5 {[%emt 0:00:30]} g6 {[%emt 0:04:52]} 20. Rad1 {[%emt 0:10:27]} Nc7 {[%emt 0:00:28]} 21. g4 {[%emt 0:04:23]} Nd5 {[%emt 0:02:26]} 22. gxh5 {[%emt 0:07:54]} Qg5+ {[%emt 0:01:01]} 23. Kh2 {[%emt 0:01:10]} Bxf2 {[%emt 0:01:55]} 24. Rxf2 {[%emt 0:00:48]} Ne3 {[%emt 0:00:52]} 25. Qc1 {[%emt 0:03:54]} Nxd1 {[%emt 0:01:02]} 26. Qxd1 {[%emt 0:00:03]} Qxh5 {[%emt 0:00:30]} 27. Qf1 {[%emt 0:01:47]} Re7 {[%emt 0:03:09]} 28. Rf4 {[%emt 0:00:22]} Rxe5 {[%emt 0:01:11]} 29. Ng3 {[%emt 0:01:03]} Qg5 {[%emt 0:00:16]} 30. dxe5 {[%emt 0:00:05]} Rd8 {[%emt 0:00:23]} 31. Rxf7 {[%emt 0:09:53]} h5 {[%emt 0:01:04]} 32. Rf6 {[%emt 0:00:48]} Qd2+ {[%emt 0:00:56]} 33. Be2 {[%emt 0:00:26]} Qc2 {[%emt 0:01:36]} 34. Qf4 {[%emt 0:00:22]} 1-0

[Event "SRB-ch Semifinal 2021"]
[Site "Paracin"]
[Date "2021.03.17"]
[Round "2.1"]
[White "Sedlak, Nikola"]
[Black "Zegarac, Vuk"]
[Result "1/2-1/2"]
[ECO "A06"]
[WhiteElo "2514"]
[BlackElo "2386"]
[Annotator "ChessBase"]
[PlyCount "94"]
[EventDate "2021.03.16"]
[EventType "swiss"]
[EventCountry "SRB"]
[SourceTitle "playchess.com"]
[Source "ChessBase"]
[SourceQuality "1"]
[TimeControl "40/5400+30:1800+30"]

1. Nf3 {[%emt 0:04:36]} d5 {[%emt 0:00:00]} 2. e3 {[%emt 0:00:20]} Nf6 {[%emt 0:00:48]} 3. b3 {[%emt 0:01:18]} g6 {[%emt 0:02:42]} 4. Bb2 {[%emt 0:00:11]} Bg7 {[%emt 0:00:20]} 5. c4 {[%emt 0:00:20]} c6 {[%emt 0:01:45]} 6. Be2 {[%emt 0:00:18]} O-O {[%emt 0:00:51]} 7. O-O {[%emt 0:00:09]} Bg4 {[%emt 0:04:03]} 8. d3 {[%emt 0:03:32]} Bxf3 {[%emt 0:10:07]} 9. Bxf3 {[%emt 0:00:18]} Re8 {[%emt 0:00:19]} 10. d4 {[%emt 0:01:58]} e6 {[%emt 0:03:06]} 11. Nc3 {[%emt 0:04:23]} Nbd7 {[%emt 0:03:18]} 12. Qc2 {[%emt 0:01:10]} a6 {[%emt 0:01:18]} 13. Rfd1 {[%emt 0:09:39]} b5 {[%emt 0:06:11]} 14. Be2 {[%emt 0:09:27]} Bf8 {[%emt 0:04:53]} 15. a4 {[%emt 0:05:13]} b4 {[%emt 0:03:31]} 16. Nb1 {[%emt 0:00:09]} Ne4 {[%emt 0:03:30]} 17. Nd2 {[%emt 0:01:30]} Nxd2 {[%emt 0:06:28]} 18. Qxd2 {[%emt 0:00:16]} f5 {[%emt 0:02:25]} 19. Rac1 {[%emt 0:03:48]} Nf6 {[%emt 0:03:15]} 20. Bd3 {[%emt 0:01:06]} Bd6 {[%emt 0:02:14]} 21. Qe2 {[%emt 0:01:54]} Ne4 {[%emt 0:20:32]} 22. f4 {[%emt 0:08:46]} a5 {[%emt 0:04:38]} 23. Rc2 {[%emt 0:00:57]} Rc8 {[%emt 0:04:18]} 24. Rdc1 {[%emt 0:04:05]} Qd7 {[%emt 0:00:18]} 25. Bxe4 {[%emt 0:00:41]} fxe4 {[%emt 0:04:16]} 26. Rf1 {[%emt 0:02:45]} Bf8 {[%emt 0:01:30]} 27. Bc1 {[%emt 0:03:00]} Bg7 {[%emt 0:00:18]} 28. c5 {[%emt 0:00:18]} Ra8 {[%emt 0:01:18]} 29. Bd2 {[%emt 0:00:41]} Qa7 {[%emt 0:00:13]} 30. Be1 {[%emt 0:00:31]} Qa6 {[%emt 0:00:21]} 31. Qd1 {[%emt 0:00:24]} Rf8 {[%emt 0:00:34]} 32. Bh4 {[%emt 0:00:39]} Bf6 {[%emt 0:01:24]} 33. Bxf6 {[%emt 0:00:58]} Rxf6 {[%emt 0:00:04]} 34. g4 {[%emt 0:00:37]} Raf8 {[%emt 0:01:26]} 35. h4 {[%emt 0:00:14]} R6f7 {[%emt 0:00:49]} 36. Rh2 {[%emt 0:00:24]} h6 {[%emt 0:00:47]} 37. Rff2 {[%emt 0:00:20]} Kh7 {[%emt 0:01:02]} 38. Qd2 {[%emt 0:01:03]} Rg8 {[%emt 0:01:04]} 39. Rfg2 {[%emt 0:00:39]} Rgf8 {[%emt 0:00:19]} 40. Rf2 {[%emt 0:00:00]} Rg8 {[%emt 0:00:00]} 41. Rhg2 {[%emt 0:03:57]} Rgf8 {[%emt 0:03:28]} 42. Qd1 {[%emt 0:03:08]} Kg7 {[%emt 0:01:22]} 43. h5 {[%emt 0:07:40]} g5 {[%emt 0:01:27]} 44. fxg5 {[%emt 0:00:07]} hxg5 {[%emt 0:00:10]} 45. Rxf7+ {[%emt 0:00:19]} Rxf7 {[%emt 0:00:11]} 46. Rf2 {[%emt 0:00:06]} Rxf2 {[%emt 0:00:12]} 47. Kxf2 {[%emt 0:00:10]} Qd3 {[%emt 0:00:10]} 1/2-1/2

[Event "SRB-ch Semifinal 2021"]
[Site "Paracin"]
[Date "2021.03.17"]
[Round "2.9"]
[White "Sredojevic, Ivan"]
[Black "Budisavljevic, Luka"]
[Result "1/2-1/2"]
[ECO "B28"]
[WhiteElo "2288"]
[BlackElo "2510"]
[Annotator "ChessBase"]
[PlyCount "60"]
[EventDate "2021.03.16"]
[EventType "swiss"]
[EventCountry "SRB"]
[SourceTitle "playchess.com"]
[Source "ChessBase"]
[SourceQuality "1"]
[TimeControl "40/5400+30:1800+30"]

1. e4 {[%emt 0:00:00]} c5 {[%emt 0:00:00]} 2. Nf3 {[%emt 0:00:00]} a6 {[%emt 0:00:26]} 3. Be2 {[%emt 0:00:50]} b5 {[%emt 0:01:58]} 4. a4 {[%emt 0:02:48]} Bb7 {[%emt 0:01:21]} 5. axb5 {[%emt 0:03:31]} axb5 {[%emt 0:00:23]} 6. Rxa8 {[%emt 0:00:06]} Bxa8 {[%emt 0:00:05]} 7. Bxb5 {[%emt 0:00:40]} Bxe4 {[%emt 0:02:21]} 8. O-O {[%emt 0:00:42]} e6 {[%emt 0:03:05]} 9. Re1 {[%emt 0:02:07]} Nf6 {[%emt 0:06:25]} 10. Nc3 {[%emt 0:04:18]} Bb7 {[%emt 0:10:16]} 11. d4 {[%emt 0:20:05]} Be7 {[%emt 0:18:19]} 12. dxc5 {[%emt 0:07:20]} Bxc5 {[%emt 0:00:18]} 13. Bf4 {[%emt 0:00:24]} O-O {[%emt 0:00:59]} 14. Ne5 {[%emt 0:06:28]} d6 {[%emt 0:07:36]} 15. Nc4 {[%emt 0:06:19]} d5 {[%emt 0:11:33]} 16. Ne5 {[%emt 0:10:16]} Bb4 {[%emt 0:02:02]} 17. Qd4 {[%emt 0:13:55]} Qa5 {[%emt 0:00:55]} 18. Bf1 {[%emt 0:01:02]} Rc8 {[%emt 0:15:54]} 19. Bd2 {[%emt 0:02:17]} Nc6 {[%emt 0:05:29]} 20. Nxc6 {[%emt 0:01:05]} Bxc6 {[%emt 0:00:08]} 21. Bd3 {[%emt 0:02:40]} Bc5 {[%emt 0:02:16]} 22. Qh4 {[%emt 0:02:39]} Qb6 {[%emt 0:00:05]} 23. b3 {[%emt 0:01:36]} Be7 {[%emt 0:02:25]} 24. Bxh7+ {[%emt 0:04:12]} Nxh7 {[%emt 0:01:17]} 25. Qxe7 {[%emt 0:00:06]} d4 {[%emt 0:01:44]} 26. Ne2 {[%emt 0:04:06]} Ba8 {[%emt 0:02:52]} 27. Bb4 {[%emt 0:01:26]} Nf6 {[%emt 0:02:12]} 28. Qd6 {[%emt 0:01:36]} Qxd6 {[%emt 0:00:49]} 29. Bxd6 {[%emt 0:00:06]} Rxc2 {[%emt 0:00:08]} 30. Nxd4 {[%emt 0:00:51]} Rd2 1/2-1/2

[Event "SRB-ch Semifinal 2021"]
[Site "Paracin"]
[Date "2021.03.17"]
[Round "3.2"]
[White "Drazic, Sinisa"]
[Black "Cabarkapa, Novak"]
[Result "1/2-1/2"]
[ECO "A49"]
[WhiteElo "2334"]
[BlackElo "2455"]
[Annotator "ChessBase"]
[PlyCount "91"]
[EventDate "2021.03.16"]
[EventType "swiss"]
[EventCountry "SRB"]
[SourceTitle "playchess.com"]
[Source "ChessBase"]
[SourceQuality "1"]
[TimeControl "40/5400+30:1800+30"]

1. d4 {[%emt 0:00:00]} Nf6 {[%emt 0:03:33]} 2. Nf3 {[%emt 0:00:00]} g6 {[%emt 0:01:26]} 3. g3 {[%emt 0:00:00]} Bg7 {[%emt 0:00:41]} 4. Bg2 {[%emt 0:00:00]} O-O {[%emt 0:00:35]} 5. O-O {[%emt 0:00:00]} d5 {[%emt 0:04:03]} 6. b3 {[%emt 0:00:00]} c5 {[%emt 0:01:11]} 7. Bb2 {[%emt 0:00:00]} Ne4 {[%emt 0:02:26]} 8. Qc1 {[%emt 0:10:27]} Qc7 {[%emt 0:04:09]} 9. dxc5 {[%emt 0:01:13]} Bxb2 {[%emt 0:08:09]} 10. Qxb2 {[%emt 0:00:50]} Qxc5 {[%emt 0:01:02]} 11. Nfd2 {[%emt 0:02:26]} Nxd2 {[%emt 0:06:19]} 12. Nxd2 {[%emt 0:00:52]} Nc6 {[%emt 0:00:57]} 13. a3 {[%emt 0:06:37]} Rd8 {[%emt 0:05:09]} 14. b4 {[%emt 0:04:33]} Qb5 {[%emt 0:01:22]} 15. Nb3 {[%emt 0:08:11]} Bg4 {[%emt 0:13:49]} 16. Rfe1 {[%emt 0:01:10]} a5 {[%emt 0:02:06]} 17. Nd4 {[%emt 0:02:01]} Qb6 {[%emt 0:07:18]} 18. Nxc6 {[%emt 0:00:42]} bxc6 {[%emt 0:00:14]} 19. c3 {[%emt 0:01:52]} Rab8 {[%emt 0:03:18]} 20. Qd2 {[%emt 0:00:49]} Be6 {[%emt 0:08:23]} 21. h4 {[%emt 0:01:01]} c5 {[%emt 0:01:01]} 22. Rab1 {[%emt 0:03:33]} Bf5 {[%emt 0:04:16]} 23. Rb2 {[%emt 0:00:08]} axb4 {[%emt 0:02:27]} 24. axb4 {[%emt 0:00:17]} d4 {[%emt 0:07:53]} 25. b5 {[%emt 0:01:36]} c4 {[%emt 0:02:47]} 26. cxd4 {[%emt 0:02:18]} Rxd4 {[%emt 0:02:43]} 27. Qc3 {[%emt 0:04:26]} Qc5 {[%emt 0:00:26]} 28. Rc1 {[%emt 0:00:53]} Rd6 {[%emt 0:00:59]} 29. Bf3 {[%emt 0:13:26]} Rxb5 {[%emt 0:01:00]} 30. Rxb5 {[%emt 0:00:20]} Qxb5 {[%emt 0:00:07]} 31. Qxc4 {[%emt 0:00:23]} Qxc4 {[%emt 0:00:17]} 32. Rxc4 {[%emt 0:00:02]} Kg7 {[%emt 0:01:37]} 33. Kg2 {[%emt 0:00:10]} Be6 {[%emt 0:00:31]} 34. Rc5 {[%emt 0:00:06]} h5 {[%emt 0:00:48]} 35. Be4 {[%emt 0:00:42]} Rd4 {[%emt 0:00:42]} 36. f3 {[%emt 0:00:14]} Kf6 {[%emt 0:02:22]} 37. Kf2 {[%emt 0:00:10]} Rd6 {[%emt 0:00:54]} 38. Ra5 {[%emt 0:00:18]} Bd7 {[%emt 0:00:40]} 39. Bd3 {[%emt 0:00:24]} Bc8 {[%emt 0:00:31]} 40. Ke3 {[%emt 0:00:00]} Re6+ {[%emt 0:00:00]} 41. Kf4 {[%emt 0:01:28]} Rd6 {[%emt 0:00:35]} 42. Ra8 {[%emt 0:00:34]} e5+ {[%emt 0:01:37]} 43. Ke3 {[%emt 0:00:03]} Bf5 {[%emt 0:01:26]} 44. Bxf5 {[%emt 0:00:12]} Kxf5 {[%emt 0:00:11]} 45. Ra5 {[%emt 0:00:13]} Rb6 {[%emt 0:00:36]} 46. Ra3 {[%emt 0:01:06]} 1/2-1/2

[Event "SRB-ch Semifinal 2021"]
[Site "Paracin"]
[Date "2021.03.17"]
[Round "3.3"]
[White "Martic, Ivan"]
[Black "Sedlak, Nikola"]
[Result "0-1"]
[ECO "A05"]
[WhiteElo "2321"]
[BlackElo "2514"]
[Annotator "ChessBase"]
[PlyCount "98"]
[EventDate "2021.03.16"]
[EventType "swiss"]
[EventCountry "SRB"]
[SourceTitle "playchess.com"]
[Source "ChessBase"]
[SourceQuality "1"]
[TimeControl "40/5400+30:1800+30"]

1. Nf3 {[%emt 0:03:32]} Nf6 {[%emt 0:00:02]} 2. c4 {[%emt 0:00:45]} g6 {[%emt 0:00:47]} 3. Nc3 {[%emt 0:00:47]} Bg7 {[%emt 0:01:52]} 4. e4 {[%emt 0:00:13]} d6 {[%emt 0:00:28]} 5. d4 {[%emt 0:00:07]} Bg4 {[%emt 0:00:22]} 6. Be2 {[%emt 0:00:17]} Bxf3 {[%emt 0:00:18]} 7. Bxf3 {[%emt 0:00:10]} e5 {[%emt 0:00:08]} 8. d5 {[%emt 0:00:50]} h5 {[%emt 0:00:11]} 9. b3 {[%emt 0:02:41]} Nbd7 {[%emt 0:00:15]} 10. O-O {[%emt 0:01:04]} Bh6 {[%emt 0:00:07]} 11. Bb2 {[%emt 0:00:43]} O-O {[%emt 0:00:28]} 12. b4 {[%emt 0:00:31]} a5 {[%emt 0:01:22]} 13. a3 {[%emt 0:00:33]} Qe7 {[%emt 0:00:08]} 14. Qd3 {[%emt 0:12:01]} Rfc8 {[%emt 0:02:27]} 15. Bd1 {[%emt 0:03:13]} c6 {[%emt 0:02:22]} 16. Bb3 {[%emt 0:03:36]} axb4 {[%emt 0:02:11]} 17. axb4 {[%emt 0:00:06]} c5 {[%emt 0:00:05]} 18. b5 {[%emt 0:05:42]} h4 {[%emt 0:12:25]} 19. Ne2 {[%emt 0:09:04]} Nh5 {[%emt 0:00:38]} 20. Qh3 {[%emt 0:02:47]} Nf4 {[%emt 0:06:35]} 21. Qf3 {[%emt 0:01:45]} Nf6 {[%emt 0:10:04]} 22. Nxf4 {[%emt 0:06:24]} Bxf4 {[%emt 0:02:55]} 23. Bc2 {[%emt 0:02:32]} Qd8 {[%emt 0:04:23]} 24. Qc3 {[%emt 0:06:38]} Nd7 {[%emt 0:09:07]} 25. Qh3 {[%emt 0:04:57]} Nb6 {[%emt 0:03:33]} 26. Bb3 {[%emt 0:01:36]} Qg5 {[%emt 0:04:41]} 27. Qd3 {[%emt 0:01:56]} Nd7 {[%emt 0:01:21]} 28. Bc3 {[%emt 0:06:23]} Nf6 {[%emt 0:07:17]} 29. Bd1 {[%emt 0:08:58]} Rxa1 {[%emt 0:00:33]} 30. Bxa1 {[%emt 0:00:05]} Ra8 {[%emt 0:00:27]} 31. Bb2 {[%emt 0:01:37]} Bc1 {[%emt 0:01:48]} 32. Bc3 {[%emt 0:03:31]} Ra3 {[%emt 0:01:26]} 33. Bf3 {[%emt 0:00:51]} Bb2 {[%emt 0:02:26]} 34. Qd2 {[%emt 0:01:43]} Qxd2 {[%emt 0:00:33]} 35. Bxd2 {[%emt 0:00:05]} h3 {[%emt 0:01:30]} 36. Rb1 {[%emt 0:00:50]} Bd4 {[%emt 0:06:05]} 37. Bg5 {[%emt 0:01:37]} Kg7 {[%emt 0:06:09]} 38. b6 {[%emt 0:00:22]} Ra2 {[%emt 0:00:28]} 39. Bh4 {[%emt 0:00:52]} hxg2 {[%emt 0:03:51]} 40. Kxg2 {[%emt 0:00:00]} Rc2 {[%emt 0:00:00]} 41. Kf1 {[%emt 0:05:11]} g5 {[%emt 0:05:44]} 42. Bg3 {[%emt 0:00:38]} Rxc4 {[%emt 0:00:37]} 43. h4 {[%emt 0:01:22]} g4 {[%emt 0:00:56]} 44. Be2 {[%emt 0:00:09]} Rc3 {[%emt 0:01:24]} 45. Bb5 {[%emt 0:00:39]} Nxe4 {[%emt 0:00:32]} 46. Kg2 {[%emt 0:00:38]} Nxg3 {[%emt 0:02:26]} 47. fxg3 {[%emt 0:00:08]} Rc2+ {[%emt 0:00:05]} 48. Kh1 {[%emt 0:00:08]} f5 {[%emt 0:00:52]} 49. Bc6 {[%emt 0:00:12]} f4 {[%emt 0:00:15]} 0-1

[Event "SRB-ch Semifinal 2021"]
[Site "Paracin"]
[Date "2021.03.17"]
[Round "3.4"]
[White "Ratkovic, Milovan"]
[Black "Popovic, Milan S"]
[Result "1-0"]
[ECO "D26"]
[WhiteElo "2462"]
[BlackElo "2327"]
[Annotator "ChessBase"]
[PlyCount "89"]
[EventDate "2021.03.16"]
[EventType "swiss"]
[EventCountry "SRB"]
[SourceTitle "playchess.com"]
[Source "ChessBase"]
[SourceQuality "1"]
[TimeControl "40/5400+30:1800+30"]

1. d4 {[%emt 0:00:00]} d5 {[%emt 0:02:58]} 2. c4 {[%emt 0:00:51]} dxc4 {[%emt 0:00:05]} 3. Nf3 {[%emt 0:00:11]} Nf6 {[%emt 0:00:05]} 4. e3 {[%emt 0:00:15]} e6 {[%emt 0:00:09]} 5. Bxc4 {[%emt 0:00:58]} a6 {[%emt 0:00:05]} 6. O-O {[%emt 0:02:53]} b5 {[%emt 0:00:23]} 7. Bd3 {[%emt 0:03:31]} Bb7 {[%emt 0:02:35]} 8. Qe2 {[%emt 0:10:44]} Nbd7 {[%emt 0:08:20]} 9. Rd1 {[%emt 0:01:56]} c5 {[%emt 0:01:28]} 10. a4 {[%emt 0:16:47]} b4 {[%emt 0:04:38]} 11. Nbd2 {[%emt 0:01:49]} cxd4 {[%emt 0:01:05]} 12. exd4 {[%emt 0:01:13]} Be7 {[%emt 0:00:09]} 13. Nc4 {[%emt 0:02:39]} O-O {[%emt 0:00:36]} 14. a5 {[%emt 0:02:31]} Nd5 {[%emt 0:21:27]} 15. Bd2 {[%emt 0:02:03]} N7f6 {[%emt 0:14:10]} 16. Nce5 {[%emt 0:01:27]} Bd6 {[%emt 0:01:40]} 17. Ng5 {[%emt 0:07:10]} Qe7 {[%emt 0:16:16]} 18. Rac1 {[%emt 0:02:13]} Bc7 {[%emt 0:05:36]} 19. Ne4 {[%emt 0:15:51]} Nxe4 {[%emt 0:02:18]} 20. Qxe4 {[%emt 0:01:04]} f5 {[%emt 0:00:39]} 21. Qe2 {[%emt 0:02:01]} Bxe5 {[%emt 0:09:02]} 22. Qxe5 {[%emt 0:03:47]} Rfc8 {[%emt 0:05:38]} 23. Rc5 {[%emt 0:06:31]} Qf6 {[%emt 0:00:59]} 24. Rdc1 {[%emt 0:09:43]} Qxe5 {[%emt 0:01:04]} 25. Rxc8+ {[%emt 0:01:40]} Rxc8 {[%emt 0:00:05]} 26. Rxc8+ {[%emt 0:00:08]} Bxc8 {[%emt 0:00:05]} 27. dxe5 {[%emt 0:00:05]} Kf7 {[%emt 0:00:34]} 28. Kf1 {[%emt 0:00:35]} Bb7 {[%emt 0:00:29]} 29. Ke2 {[%emt 0:00:51]} Ke8 {[%emt 0:00:37]} 30. Bc4 {[%emt 0:00:48]} Kd7 {[%emt 0:00:13]} 31. Kd3 {[%emt 0:00:31]} Nc7 {[%emt 0:01:04]} 32. g3 {[%emt 0:02:37]} Bd5 {[%emt 0:00:28]} 33. b3 {[%emt 0:00:30]} Bxc4+ {[%emt 0:00:56]} 34. bxc4 {[%emt 0:00:13]} b3 {[%emt 0:00:30]} 35. Kc3 {[%emt 0:00:10]} h6 {[%emt 0:00:31]} 36. Kxb3 {[%emt 0:00:40]} g5 {[%emt 0:00:29]} 37. h3 {[%emt 0:00:32]} Ne8 {[%emt 0:00:21]} 38. Kb4 {[%emt 0:00:34]} Kc6 {[%emt 0:00:04]} 39. g4 {[%emt 0:00:53]} Ng7 {[%emt 0:01:04]} 40. f4 {[%emt 0:00:00]} gxf4 {[%emt 0:00:00]} 41. Bxf4 {[%emt 0:02:08]} h5 {[%emt 0:01:41]} 42. g5 {[%emt 0:02:07]} h4 {[%emt 0:00:19]} 43. g6 {[%emt 0:00:29]} Nh5 {[%emt 0:00:05]} 44. Bh6 {[%emt 0:01:19]} f4 {[%emt 0:00:12]} 45. Bxf4 {[%emt 0:01:14]} 1-0

[Event "SRB-ch Semifinal 2021"]
[Site "Paracin"]
[Date "2021.03.17"]
[Round "3.5"]
[White "Zegarac, Vuk"]
[Black "Tadic, Stefan"]
[Result "1/2-1/2"]
[ECO "A48"]
[WhiteElo "2386"]
[BlackElo "2419"]
[Annotator "NA"]
[PlyCount "69"]
[EventDate "2021.03.16"]
[EventType "swiss"]
[EventCountry "SRB"]
[SourceTitle "playchess.com"]
[Source "ChessBase"]
[SourceQuality "1"]
[TimeControl "40/5400+30:1800+30"]

1. d4 Nf6 {[%emt 0:03:15]} 2. Nf3 {[%emt 0:01:28]} g6 {[%emt 0:02:17]} 3. Bg5 {[%emt 0:00:12]} Bg7 {[%emt 0:00:03]} 4. Nbd2 {[%emt 0:00:07]} O-O {[%emt 0:00:48]} 5. c3 {[%emt 0:00:09]} d6 {[%emt 0:01:38]} 6. a4 {[%emt 0:01:08]} Qe8 {[%emt 0:05:10]} 7. e4 {[%emt 0:03:00]} e5 {[%emt 0:01:29]} 8. dxe5 {[%emt 0:00:30]} dxe5 {[%emt 0:00:30]} 9. Be2 {[%emt 0:00:30]} h6 {[%emt 0:01:15]} 10. Bh4 {[%emt 0:04:08]} Nh5 {[%emt 0:03:16]} 11. Bg3 {[%emt 0:00:08]} a5 {[%emt 0:04:33]} 12. O-O {[%emt 0:01:31]} Nd7 {[%emt 0:05:51]} 13. Re1 {[%emt 0:03:02]} Nc5 {[%emt 0:03:53]} 14. Qc2 {[%emt 0:00:35]} Bd7 {[%emt 0:12:23]} 15. b3 {[%emt 0:00:44]} Bc6 {[%emt 0:00:54]} 16. Bf1 {[%emt 0:01:49]} b6 {[%emt 0:09:19]} 17. Nc4 {[%emt 0:05:09]} Nf4 {[%emt 0:03:38]} 18. Na3 {[%emt 0:03:32]} Rd8 {[%emt 0:11:20]} 19. Bb5 {[%emt 0:06:15]} Bxb5 {[%emt 0:00:24]} 20. Nxb5 {[%emt 0:00:27]} Qc6 {[%emt 0:00:37]} 21. Bxf4 {[%emt 0:08:01]} exf4 {[%emt 0:00:15]} 22. Nbd4 {[%emt 0:00:32]} Qa8 {[%emt 0:03:40]} 23. e5 {[%emt 0:02:31]} Rfe8 {[%emt 0:02:15]} 24. Rad1 {[%emt 0:04:57]} Rd5 {[%emt 0:04:15]} 25. b4 {[%emt 0:13:16]} Ne6 {[%emt 0:02:41]} 26. Nxe6 {[%emt 0:02:02]} Rxd1 {[%emt 0:01:31]} 27. Qxd1 {[%emt 0:01:54]} Rxe6 {[%emt 0:00:12]} 28. h4 {[%emt 0:00:55]} Kh7 {[%emt 0:07:16]} 29. Qd7 {[%emt 0:03:22]} Kg8 {[%emt 0:00:59]} 30. b5 {[%emt 0:02:51]} c5 31. Qc7 {[%emt 0:05:04]} Qd5 {[%emt 0:02:08]} 32. Qb8+ {[%emt 0:00:54]} Kh7 {[%emt 0:00:09]} 33. Qc7 {[%emt 0:00:08]} Kg8 {[%emt 0:00:04]} 34. Qb8+ Kh7 35. Qc7 {[%emt 0:00:28]} 1/2-1/2